[Event "Live Chess"]
[Site "Chess.com"]
[Date "2023.05.21"]
[Round "-"]
[White "JohanKjeldahl"]
[Black "GMHarry-youtube"]
[Result "1-0"]
[WhiteElo "1891"]
[BlackElo "2018"]
[TimeControl "300"]
[EndTime "8:01:50 PDT"]
[Termination "JohanKjeldahl won by checkmate"]

1. c4 {[%clk 0:04:55.7]} 1... Nf6 {[%clk 0:04:55.8]} 2. Nc3 {[%clk 0:04:54.2]}
2... c5 {[%clk 0:04:53.6]} 3. Nf3 {[%clk 0:04:51.7]} 3... g6 {[%clk 0:04:50.9]}
4. d4 {[%clk 0:04:50.6]} 4... cxd4 {[%clk 0:04:47.7]} 5. Nxd4 {[%clk 0:04:49.3]}
5... Bg7 {[%clk 0:04:47.6]} 6. e4 {[%clk 0:04:48]} 6... d6 {[%clk 0:04:42.5]} 7.
f3 {[%clk 0:04:46.6]} 7... O-O {[%clk 0:04:28.7]} 8. Be3 {[%clk 0:04:45.4]} 8...
Nc6 {[%clk 0:04:24]} 9. Qd2 {[%clk 0:04:44.3]} 9... a6 {[%clk 0:04:22.3]} 10.
Be2 {[%clk 0:04:43]} 10... Qc7 {[%clk 0:04:18.4]} 11. O-O {[%clk 0:04:41.5]}
11... Nxd4 {[%clk 0:04:11.4]} 12. Bxd4 {[%clk 0:04:38.2]} 12... Be6 {[%clk
0:04:11.3]} 13. b3 {[%clk 0:04:33.9]} 13... Rab8 {[%clk 0:04:07.7]} 14. Rac1
{[%clk 0:04:31.1]} 14... Rfc8 {[%clk 0:04:05.7]} 15. Nd5 {[%clk 0:04:27.2]}
15... Nxd5 {[%clk 0:04:01.5]} 16. cxd5 {[%clk 0:04:24.7]} 16... Bxd4+ {[%clk
0:04:00.2]} 17. Qxd4 {[%clk 0:04:21.5]} 17... Qxc1 {[%clk 0:03:59.7]} 18. Rxc1
{[%clk 0:04:20.4]} 18... Rxc1+ {[%clk 0:03:59.6]} 19. Kf2 {[%clk 0:04:19.1]}
19... Bd7 {[%clk 0:03:58]} 20. Qd2 {[%clk 0:04:10.2]} 20... Rbc8 {[%clk
0:03:55.6]} 21. Bd3 {[%clk 0:04:08.2]} 21... Bb5 {[%clk 0:03:52.3]} 22. Kg3
{[%clk 0:04:05.1]} 22... Bxd3 {[%clk 0:03:50.4]} 23. Qxd3 {[%clk 0:04:04]} 23...
b5 {[%clk 0:03:45.5]} 24. h4 {[%clk 0:03:59.7]} 24... h5 {[%clk 0:03:42.9]} 25.
Kf4 {[%clk 0:03:49.2]} 25... R1c2 {[%clk 0:03:33.6]} 26. g4 {[%clk 0:03:44.4]}
26... hxg4 {[%clk 0:03:15.4]} 27. fxg4 {[%clk 0:03:43.3]} 27... Rf8 {[%clk
0:03:15]} 28. Qxc2 {[%clk 0:03:39.9]} 28... e5+ {[%clk 0:03:14.1]} 29. dxe6
{[%clk 0:03:36.7]} 29... fxe6+ {[%clk 0:03:14]} 30. Kg3 {[%clk 0:03:35]} 30...
d5 {[%clk 0:03:11.2]} 31. exd5 {[%clk 0:03:33.5]} 31... exd5 {[%clk 0:03:11.1]}
32. Qxg6+ {[%clk 0:03:32]} 32... Kh8 {[%clk 0:03:09.8]} 33. Qh6+ {[%clk
0:03:30.4]} 33... Kg8 {[%clk 0:03:09]} 34. Qe6+ {[%clk 0:03:29.3]} 34... Kh8
{[%clk 0:03:08.1]} 35. Qxd5 {[%clk 0:03:28.1]} 35... b4 {[%clk 0:03:05.9]} 36.
Qh5+ {[%clk 0:03:23.4]} 36... Kg8 {[%clk 0:03:04.8]} 37. Qg6+ {[%clk 0:03:22.6]}
37... Kh8 {[%clk 0:03:04.2]} 38. Qh6+ {[%clk 0:03:21.7]} 38... Kg8 {[%clk
0:03:02.5]} 39. Qxf8+ {[%clk 0:03:20.8]} 39... Kh7 {[%clk 0:02:59.5]} 40. g5
{[%clk 0:03:15.8]} 40... a5 {[%clk 0:02:58.8]} 41. h5 {[%clk 0:03:12.1]} 41...
a4 {[%clk 0:02:56.6]} 42. g6# {[%clk 0:03:11.2]} 1-0

[Event "Live Chess"]
[Site "Chess.com"]
[Date "2023.05.21"]
[Round "-"]
[White "LL220284LL"]
[Black "TheAuditer"]
[Result "1-0"]
[WhiteElo "2231"]
[BlackElo "1385"]
[TimeControl "300"]
[EndTime "8:01:51 PDT"]
[Termination "LL220284LL won by resignation"]

1. Nf3 {[%clk 0:04:59.2]} 1... d5 {[%clk 0:04:58]} 2. c4 {[%clk 0:04:56.5]} 2...
Nf6 {[%clk 0:04:54.5]} 3. e3 {[%clk 0:04:55.5]} 3... e6 {[%clk 0:04:50.5]} 4. b3
{[%clk 0:04:48.5]} 4... dxc4 {[%clk 0:04:47.7]} 5. bxc4 {[%clk 0:04:47.1]} 5...
b6 {[%clk 0:04:43.9]} 6. d4 {[%clk 0:04:46]} 6... Bb7 {[%clk 0:04:42.6]} 7. Bd3
{[%clk 0:04:45.6]} 7... Nbd7 {[%clk 0:04:39.7]} 8. O-O {[%clk 0:04:44.5]} 8...
c5 {[%clk 0:04:35.2]} 9. Bb2 {[%clk 0:04:43.2]} 9... cxd4 {[%clk 0:04:28.5]} 10.
exd4 {[%clk 0:04:42.1]} 10... Be7 {[%clk 0:04:25]} 11. Nc3 {[%clk 0:04:40.8]}
11... O-O {[%clk 0:04:23.1]} 12. Re1 {[%clk 0:04:39.2]} 12... Rc8 {[%clk
0:04:12.6]} 13. d5 {[%clk 0:04:36.3]} 13... exd5 {[%clk 0:04:09.1]} 14. cxd5
{[%clk 0:04:35.4]} 14... Nc5 {[%clk 0:04:00.5]} 15. Bf5 {[%clk 0:04:26.2]} 15...
Rc7 {[%clk 0:03:56.7]} 16. Nb5 {[%clk 0:04:21.1]} 16... Bd6 {[%clk 0:03:30.3]}
17. Nxd6 {[%clk 0:04:17]} 17... Qxd6 {[%clk 0:03:28]} 18. Be5 {[%clk 0:04:16.5]}
18... Qd8 {[%clk 0:03:22.5]} 19. Bxc7 {[%clk 0:04:14.4]} 19... Qxc7 {[%clk
0:03:21.2]} 20. d6 {[%clk 0:04:13.5]} 20... Qd7 {[%clk 0:03:18.1]} 21. Bxd7
{[%clk 0:04:12.3]} 1-0

[Event "Live Chess"]
[Site "Chess.com"]
[Date "2023.05.21"]
[Round "-"]
[White "FlyingChessKestrel13"]
[Black "Long1968"]
[Result "1-0"]
[WhiteElo "2050"]
[BlackElo "945"]
[TimeControl "300"]
[EndTime "8:02:06 PDT"]
[Termination "FlyingChessKestrel13 won on time"]

1. e4 {[%clk 0:04:58.2]} 1... e6 {[%clk 0:04:56.5]} 2. d4 {[%clk 0:04:56.8]}
2... d5 {[%clk 0:04:52.4]} 3. exd5 {[%clk 0:04:54.7]} 3... exd5 {[%clk
0:04:48.7]} 4. c4 {[%clk 0:04:53.8]} 4... dxc4 {[%clk 0:04:40.1]} 5. Bxc4 {[%clk
0:04:51.7]} 5... Nf6 {[%clk 0:04:35.5]} 6. Ne2 {[%clk 0:04:48.1]} 6... c5 {[%clk
0:04:08.8]} 7. O-O {[%clk 0:04:43.1]} 7... Be7 {[%clk 0:03:20.7]} 8. d5 {[%clk
0:04:38.4]} 8... O-O {[%clk 0:03:12.6]} 9. Nbc3 {[%clk 0:04:36.4]} 9... Nbd7
{[%clk 0:03:03.1]} 10. d6 {[%clk 0:04:31.4]} 10... Bxd6 {[%clk 0:02:42.3]} 11.
Qxd6 {[%clk 0:04:28.8]} 11... Nb6 {[%clk 0:02:39.3]} 12. Qxd8 {[%clk 0:04:26.8]}
12... Rxd8 {[%clk 0:02:35.5]} 13. Bb3 {[%clk 0:04:25.9]} 13... c4 {[%clk
0:02:21.3]} 14. Bc2 {[%clk 0:04:23.3]} 14... Bg4 {[%clk 0:02:13.4]} 15. f3
{[%clk 0:04:20.5]} 15... Be6 {[%clk 0:02:04.4]} 16. Be3 {[%clk 0:04:18.3]} 16...
Nbd5 {[%clk 0:01:57.3]} 17. Bf2 {[%clk 0:04:15.4]} 17... Nb4 {[%clk 0:01:40.4]}
18. Bb1 {[%clk 0:04:05.6]} 18... Nd3 {[%clk 0:01:29.3]} 19. Bxd3 {[%clk
0:04:03.8]} 19... cxd3 {[%clk 0:01:11]} 20. Nd4 {[%clk 0:04:01.7]} 20... Bc4
{[%clk 0:00:52.9]} 21. Rfd1 {[%clk 0:03:59.2]} 21... Nh5 {[%clk 0:00:22.6]} 22.
g3 {[%clk 0:03:53.7]} 22... Rd7 {[%clk 0:00:11.5]} 23. b3 {[%clk 0:03:46.1]}
23... Ba6 {[%clk 0:00:07.7]} 24. a4 {[%clk 0:03:41.4]} 1-0

[Event "Live Chess"]
[Site "Chess.com"]
[Date "2023.05.21"]
[Round "-"]
[White "LiamClery2020"]
[Black "Hacker_2009"]
[Result "1/2-1/2"]
[WhiteElo "2005"]
[BlackElo "1956"]
[TimeControl "300"]
[EndTime "8:02:06 PDT"]
[Termination "Game drawn by agreement"]

1. e4 {[%clk 0:04:59]} 1... c5 {[%clk 0:04:58.2]} 2. Nf3 {[%clk 0:04:58]} 2...
d6 {[%clk 0:04:55.6]} 3. Bb5+ {[%clk 0:04:56.9]} 3... Bd7 {[%clk 0:04:53.1]} 4.
Bxd7+ {[%clk 0:04:55.8]} 4... Qxd7 {[%clk 0:04:53]} 5. O-O {[%clk 0:04:54.5]}
5... e6 {[%clk 0:04:51.6]} 6. Re1 {[%clk 0:04:53.6]} 6... Nc6 {[%clk 0:04:50.8]}
7. c3 {[%clk 0:04:52.4]} 7... Nf6 {[%clk 0:04:48.6]} 8. d4 {[%clk 0:04:51.8]}
8... cxd4 {[%clk 0:04:47.1]} 9. cxd4 {[%clk 0:04:51.7]} 9... Be7 {[%clk
0:04:45.5]} 10. Nc3 {[%clk 0:04:51.1]} 10... O-O {[%clk 0:04:44.3]} 11. Be3
{[%clk 0:04:50.3]} 11... a6 {[%clk 0:04:39.1]} 12. Qd2 {[%clk 0:04:49.1]} 12...
Qc7 {[%clk 0:04:38]} 13. Rac1 {[%clk 0:04:45.4]} 13... d5 {[%clk 0:04:36.8]} 14.
exd5 {[%clk 0:04:38.9]} 14... Nxd5 {[%clk 0:04:27.4]} 15. Nxd5 {[%clk
0:04:34.2]} 15... exd5 {[%clk 0:04:27.3]} 16. Ne5 {[%clk 0:04:33.4]} 16... Bf6
{[%clk 0:04:21.9]} 17. Bf4 {[%clk 0:04:30]} 17... Qa5 {[%clk 0:04:05.9]} 18.
Qxa5 {[%clk 0:04:14.9]} 18... Nxa5 {[%clk 0:04:04.3]} 19. Nd7 {[%clk 0:04:14.3]}
19... Rfe8 {[%clk 0:03:59.1]} 20. Nxf6+ {[%clk 0:04:12]} 20... gxf6 {[%clk
0:03:59]} 21. Kf1 {[%clk 0:04:09.8]} 21... Nc4 {[%clk 0:03:57.8]} 22. b3 {[%clk
0:04:07.6]} 22... Na5 {[%clk 0:03:54.7]} 23. Rc7 {[%clk 0:04:02.7]} 23... Nc6
{[%clk 0:03:51.8]} 24. Rd1 {[%clk 0:03:58.7]} 24... Re4 {[%clk 0:03:49.4]} 25.
Be3 {[%clk 0:03:53.9]} 25... f5 {[%clk 0:03:45.9]} 26. Rxb7 {[%clk 0:03:43.2]}
26... f4 {[%clk 0:03:44.8]} 27. Bd2 {[%clk 0:03:41.9]} 27... Rxd4 {[%clk
0:03:42.3]} 28. Rb6 {[%clk 0:03:31.5]} 28... Ne5 {[%clk 0:03:36.3]} 29. Ke2
{[%clk 0:03:23.4]} 29... Re8 {[%clk 0:03:32.8]} 30. Kf1 {[%clk 0:03:17.6]} 30...
f3 {[%clk 0:03:21.7]} 31. g3 {[%clk 0:03:10.3]} 31... Ng6 {[%clk 0:03:11.6]} 32.
Re1 {[%clk 0:03:04.3]} 32... Rc8 {[%clk 0:03:01.9]} 33. Be3 {[%clk 0:02:54.7]}
33... Re4 {[%clk 0:02:58.8]} 34. Rxa6 {[%clk 0:02:51.1]} 1/2-1/2

[Event "Live Chess"]
[Site "Chess.com"]
[Date "2023.05.21"]
[Round "-"]
[White "RichardABates"]
[Black "YrrriKharkiv"]
[Result "1-0"]
[WhiteElo "2171"]
[BlackElo "2045"]
[TimeControl "300"]
[EndTime "8:02:08 PDT"]
[Termination "RichardABates won by resignation"]

1. d4 {[%clk 0:04:58.5]} 1... Nf6 {[%clk 0:04:58.1]} 2. Nf3 {[%clk 0:04:56.8]}
2... d6 {[%clk 0:04:55.9]} 3. c4 {[%clk 0:04:55.4]} 3... Nbd7 {[%clk 0:04:55.5]}
4. Nc3 {[%clk 0:04:53.4]} 4... g6 {[%clk 0:04:55.1]} 5. g3 {[%clk 0:04:51.1]}
5... Bg7 {[%clk 0:04:54.8]} 6. Bg2 {[%clk 0:04:50]} 6... O-O {[%clk 0:04:54.5]}
7. O-O {[%clk 0:04:49.1]} 7... c6 {[%clk 0:04:53.7]} 8. d5 {[%clk 0:04:45.9]}
8... Re8 {[%clk 0:04:48.9]} 9. dxc6 {[%clk 0:04:43.2]} 9... bxc6 {[%clk
0:04:47]} 10. Nd4 {[%clk 0:04:42.3]} 10... Nb8 {[%clk 0:04:41.4]} 11. Nxc6
{[%clk 0:04:37.8]} 11... Nxc6 {[%clk 0:04:40.2]} 12. Bxc6 {[%clk 0:04:36.7]}
12... Bh3 {[%clk 0:04:39.2]} 13. Bxe8 {[%clk 0:04:28]} 13... Qxe8 {[%clk
0:04:32.8]} 14. Re1 {[%clk 0:04:21.8]} 14... Rc8 {[%clk 0:04:30.7]} 15. Qd3
{[%clk 0:04:15.5]} 15... Qc6 {[%clk 0:04:22.7]} 16. Nd5 {[%clk 0:04:14.2]} 16...
Kf8 {[%clk 0:04:15]} 17. f3 {[%clk 0:04:09.4]} 17... Qxc4 {[%clk 0:04:04]} 18.
Nxf6 {[%clk 0:03:58.1]} 18... Bxf6 {[%clk 0:03:58.3]} 19. Bh6+ {[%clk
0:03:56.3]} 19... Bg7 {[%clk 0:03:49.7]} 20. Bxg7+ {[%clk 0:03:35.2]} 20... Kxg7
{[%clk 0:03:45.8]} 21. Qxc4 {[%clk 0:03:32.8]} 21... Rxc4 {[%clk 0:03:44]} 22.
Rac1 {[%clk 0:03:31.4]} 22... Ra4 {[%clk 0:03:36.3]} 23. a3 {[%clk 0:03:29.5]}
23... Be6 {[%clk 0:03:35.1]} 24. Rc7 {[%clk 0:03:27.6]} 24... Ra6 {[%clk
0:03:32.7]} 25. Rxe7 {[%clk 0:03:24.3]} 25... Rb6 {[%clk 0:03:30.7]} 26. b4
{[%clk 0:03:21.5]} 26... a5 {[%clk 0:03:29]} 27. Rb1 {[%clk 0:03:15.5]} 27...
axb4 {[%clk 0:03:26.9]} 28. axb4 {[%clk 0:03:13.8]} 28... Kf6 {[%clk 0:03:22.7]}
29. Rc7 {[%clk 0:03:12.2]} 29... Rb5 {[%clk 0:03:18]} 30. Kf2 {[%clk 0:03:02.2]}
30... Bd5 {[%clk 0:03:09.6]} 31. e4 {[%clk 0:02:55.2]} 31... Be6 {[%clk
0:03:08]} 32. Ke3 {[%clk 0:02:53.2]} 32... d5 {[%clk 0:03:03.9]} 33. Rc5 {[%clk
0:02:49.8]} 1-0

[Event "Live Chess"]
[Site "Chess.com"]
[Date "2023.05.21"]
[Round "-"]
[White "PaulyD81"]
[Black "diana21strabt"]
[Result "0-1"]
[WhiteElo "1183"]
[BlackElo "1735"]
[TimeControl "300"]
[EndTime "8:02:10 PDT"]
[Termination "diana21strabt won on time"]

1. d4 {[%clk 0:04:57.7]} 1... Nf6 {[%clk 0:04:58.8]} 2. c4 {[%clk 0:04:56.6]}
2... g6 {[%clk 0:04:57.9]} 3. Nc3 {[%clk 0:04:54.1]} 3... Bg7 {[%clk 0:04:56.5]}
4. e4 {[%clk 0:04:53.1]} 4... d6 {[%clk 0:04:55.1]} 5. Nf3 {[%clk 0:04:51.6]}
5... Nbd7 {[%clk 0:04:53.4]} 6. Be2 {[%clk 0:04:50.7]} 6... O-O {[%clk
0:04:51.4]} 7. O-O {[%clk 0:04:49.9]} 7... e5 {[%clk 0:04:50.1]} 8. dxe5 {[%clk
0:04:40.7]} 8... Nxe5 {[%clk 0:04:48.1]} 9. Nxe5 {[%clk 0:04:29.6]} 9... dxe5
{[%clk 0:04:46.3]} 10. Bg5 {[%clk 0:04:22.4]} 10... Be6 {[%clk 0:04:43.2]} 11.
Nd5 {[%clk 0:03:59.9]} 11... c6 {[%clk 0:04:28.5]} 12. Nxf6+ {[%clk 0:03:51.7]}
12... Bxf6 {[%clk 0:04:27.1]} 13. Qxd8 {[%clk 0:03:37.4]} 13... Bxd8 {[%clk
0:04:22.6]} 14. Bh6 {[%clk 0:03:15.7]} 14... Re8 {[%clk 0:04:19.5]} 15. Rad1
{[%clk 0:03:03.3]} 15... Be7 {[%clk 0:04:08.3]} 16. a3 {[%clk 0:02:55.5]} 16...
Rad8 {[%clk 0:04:02.8]} 17. b4 {[%clk 0:02:51.4]} 17... a5 {[%clk 0:03:59.3]}
18. c5 {[%clk 0:02:44]} 18... axb4 {[%clk 0:03:49.4]} 19. axb4 {[%clk
0:02:40.9]} 19... Ra8 {[%clk 0:03:47.5]} 20. h3 {[%clk 0:02:24.1]} 20... Ra4
{[%clk 0:03:40.5]} 21. Rb1 {[%clk 0:02:12.6]} 21... Rea8 {[%clk 0:03:28.9]} 22.
Bg4 {[%clk 0:02:09.7]} 22... Bxg4 {[%clk 0:03:24.2]} 23. hxg4 {[%clk 0:02:06.3]}
23... g5 {[%clk 0:03:22]} 24. g3 {[%clk 0:01:46.6]} 24... f6 {[%clk 0:03:20.2]}
25. f4 {[%clk 0:01:34.3]} 25... exf4 {[%clk 0:03:11.7]} 26. gxf4 {[%clk
0:01:32.1]} 26... gxf4 {[%clk 0:03:07.5]} 27. Rxf4 {[%clk 0:01:23.8]} 27... Ra3
{[%clk 0:02:56.3]} 28. Kg2 {[%clk 0:01:03.6]} 28... Ra2+ {[%clk 0:02:50.5]} 29.
Rf2 {[%clk 0:01:00.9]} 29... Rxf2+ {[%clk 0:02:44.5]} 30. Kxf2 {[%clk
0:00:58.6]} 30... Ra2+ {[%clk 0:02:43.7]} 31. Kf1 {[%clk 0:00:51.2]} 31... Kf7
{[%clk 0:02:41.5]} 32. Bf4 {[%clk 0:00:30.5]} 32... Kg6 {[%clk 0:02:38.2]} 33.
Ke1 {[%clk 0:00:21.6]} 33... Bf8 {[%clk 0:02:34.8]} 34. Kf1 {[%clk 0:00:20.4]}
34... Bh6 {[%clk 0:02:33.2]} 35. g5 {[%clk 0:00:18.8]} 35... Bxg5 {[%clk
0:02:26.2]} 36. Bxg5 {[%clk 0:00:16.5]} 36... Kxg5 {[%clk 0:02:23.2]} 37. Kg1
{[%clk 0:00:12]} 37... Kf4 {[%clk 0:02:22.1]} 38. Re1 {[%clk 0:00:10]} 38... Rb2
{[%clk 0:02:19.7]} 0-1

[Event "Live Chess"]
[Site "Chess.com"]
[Date "2023.05.21"]
[Round "-"]
[White "TheSmoulderingMaster"]
[Black "LiamBellwood"]
[Result "0-1"]
[WhiteElo "1658"]
[BlackElo "1913"]
[TimeControl "300"]
[EndTime "8:02:15 PDT"]
[Termination "LiamBellwood won by resignation"]

1. e4 {[%clk 0:04:58.9]} 1... e6 {[%clk 0:04:59.9]} 2. d4 {[%clk 0:04:57.1]}
2... d5 {[%clk 0:04:59.8]} 3. Nc3 {[%clk 0:04:56.2]} 3... Nf6 {[%clk 0:04:58.7]}
4. Bg5 {[%clk 0:04:54.7]} 4... h6 {[%clk 0:04:57.7]} 5. Bh4 {[%clk 0:04:53.3]}
5... g5 {[%clk 0:04:56.1]} 6. Bg3 {[%clk 0:04:52.3]} 6... dxe4 {[%clk 0:04:56]}
7. Be5 {[%clk 0:04:50.7]} 7... Bg7 {[%clk 0:04:54.8]} 8. Nge2 {[%clk 0:04:48.3]}
8... Nc6 {[%clk 0:04:48.2]} 9. Ng3 {[%clk 0:04:39.1]} 9... O-O {[%clk
0:04:37.6]} 10. Qd2 {[%clk 0:04:34]} 10... Ng4 {[%clk 0:04:12.8]} 11. Bxg7
{[%clk 0:04:30.9]} 11... Kxg7 {[%clk 0:04:12.7]} 12. Ncxe4 {[%clk 0:04:24.7]}
12... Qxd4 {[%clk 0:04:07.3]} 13. Qxd4+ {[%clk 0:04:21.7]} 13... Nxd4 {[%clk
0:04:07.2]} 14. O-O-O {[%clk 0:04:20.7]} 14... e5 {[%clk 0:03:57.2]} 15. Nh5+
{[%clk 0:04:15.7]} 15... Kg6 {[%clk 0:03:49.3]} 16. h3 {[%clk 0:04:14.2]} 16...
Nxf2 {[%clk 0:03:28.9]} 17. Nxf2 {[%clk 0:04:08.6]} 17... Kxh5 {[%clk
0:03:28.8]} 18. g4+ {[%clk 0:04:07.1]} 18... Kg6 {[%clk 0:03:27.7]} 19. Nd3
{[%clk 0:04:06.2]} 19... f6 {[%clk 0:03:26.4]} 20. Bg2 {[%clk 0:04:03.4]} 20...
c6 {[%clk 0:03:24.4]} 21. Be4+ {[%clk 0:04:02.3]} 21... Kg7 {[%clk 0:03:17.1]}
22. Nc5 {[%clk 0:03:57.9]} 22... b6 {[%clk 0:03:12.5]} 23. Nd3 {[%clk 0:03:55]}
23... Bd7 {[%clk 0:02:53.5]} 24. c3 {[%clk 0:03:52.4]} 24... Ne2+ {[%clk
0:02:52.3]} 25. Kd2 {[%clk 0:03:50.4]} 25... Ng3 {[%clk 0:02:51.9]} 26. Rhe1
{[%clk 0:03:47.8]} 26... Nxe4+ {[%clk 0:02:50.9]} 27. Rxe4 {[%clk 0:03:46.6]}
27... Rad8 {[%clk 0:02:50.4]} 28. Ke3 {[%clk 0:03:44]} 28... c5 {[%clk
0:02:48.8]} 29. c4 {[%clk 0:03:38.3]} 29... Bc6 {[%clk 0:02:47.6]} 30. Re1
{[%clk 0:03:28.3]} 30... Bxe4 {[%clk 0:02:46.1]} 31. Kxe4 {[%clk 0:03:27.8]}
31... Rd4+ {[%clk 0:02:45.7]} 32. Ke3 {[%clk 0:03:26.1]} 32... Rfd8 {[%clk
0:02:43.5]} 33. Nf2 {[%clk 0:03:24.2]} 33... Rxc4 {[%clk 0:02:42]} 0-1

[Event "Live Chess"]
[Site "Chess.com"]
[Date "2023.05.21"]
[Round "-"]
[White "JoshMcK"]
[Black "OleksiyJr1"]
[Result "1-0"]
[WhiteElo "1572"]
[BlackElo "1032"]
[TimeControl "300"]
[EndTime "8:02:16 PDT"]
[Termination "JoshMcK won by resignation"]

1. e4 {[%clk 0:04:59.3]} 1... c5 {[%clk 0:04:58.3]} 2. c3 {[%clk 0:04:58.1]}
2... Nc6 {[%clk 0:04:57.4]} 3. d4 {[%clk 0:04:54.8]} 3... cxd4 {[%clk
0:04:55.8]} 4. cxd4 {[%clk 0:04:54.7]} 4... e6 {[%clk 0:04:55.3]} 5. Nf3 {[%clk
0:04:52.4]} 5... d5 {[%clk 0:04:54.4]} 6. exd5 {[%clk 0:04:50.2]} 6... Qxd5
{[%clk 0:04:53.4]} 7. Nc3 {[%clk 0:04:49.5]} 7... Qd8 {[%clk 0:04:45.9]} 8. Be2
{[%clk 0:04:46.5]} 8... Nf6 {[%clk 0:04:44.3]} 9. O-O {[%clk 0:04:45]} 9... Bb4
{[%clk 0:04:43.4]} 10. a3 {[%clk 0:04:43.2]} 10... Bxc3 {[%clk 0:04:40.3]} 11.
bxc3 {[%clk 0:04:43.1]} 11... a6 {[%clk 0:04:38.1]} 12. Bg5 {[%clk 0:04:40.6]}
12... b5 {[%clk 0:04:37.2]} 13. Ne5 {[%clk 0:04:38]} 13... Nxe5 {[%clk
0:04:33.9]} 14. dxe5 {[%clk 0:04:37.9]} 14... Qxd1 {[%clk 0:04:32.8]} 15. Rfxd1
{[%clk 0:04:34.7]} 15... Nd5 {[%clk 0:04:28.2]} 16. c4 {[%clk 0:04:27.1]} 16...
bxc4 {[%clk 0:04:19]} 17. Bxc4 {[%clk 0:04:25.7]} 17... Bb7 {[%clk 0:04:15.2]}
18. Bxd5 {[%clk 0:04:03.4]} 18... Bxd5 {[%clk 0:04:15.1]} 19. Rab1 {[%clk
0:04:02.5]} 19... O-O {[%clk 0:04:12.9]} 20. Rb6 {[%clk 0:04:00.6]} 20... Bc4
{[%clk 0:04:03.1]} 21. Rc1 {[%clk 0:03:53]} 21... Rfc8 {[%clk 0:03:59.9]} 22.
Rd6 {[%clk 0:03:39.6]} 22... h6 {[%clk 0:03:56.3]} 23. Be3 {[%clk 0:03:36.1]}
23... Bd3 {[%clk 0:03:51.2]} 24. Rxc8+ {[%clk 0:03:28.1]} 24... Rxc8 {[%clk
0:03:51.1]} 25. Rxd3 {[%clk 0:03:27.3]} 25... Rb8 {[%clk 0:03:45.7]} 26. g3
{[%clk 0:03:23]} 26... Kf8 {[%clk 0:03:41.4]} 27. Bc5+ {[%clk 0:03:18.2]} 27...
Ke8 {[%clk 0:03:40]} 28. Rd6 {[%clk 0:03:15]} 28... Rb1+ {[%clk 0:03:37]} 29.
Kg2 {[%clk 0:03:13.7]} 29... Rc1 {[%clk 0:03:34.2]} 30. Bb4 {[%clk 0:03:12.2]}
30... Re1 {[%clk 0:03:27.6]} 31. Rxa6 {[%clk 0:03:10.8]} 31... Rxe5 {[%clk
0:03:25.6]} 32. Ra8+ {[%clk 0:03:04.2]} 32... Kd7 {[%clk 0:03:22.8]} 33. Ra7+
{[%clk 0:03:01.6]} 33... Ke8 {[%clk 0:03:21.6]} 34. Re7+ {[%clk 0:03:00.5]}
34... Kf8 {[%clk 0:03:19.7]} 35. Rxe6+ {[%clk 0:02:59.8]} 35... Kg8 {[%clk
0:03:15.5]} 36. Rxe5 {[%clk 0:02:59.7]} 36... g6 {[%clk 0:03:13.2]} 1-0

[Event "Live Chess"]
[Site "Chess.com"]
[Date "2023.05.21"]
[Round "-"]
[White "Leonid_Starozhilov"]
[Black "peter-785"]
[Result "1-0"]
[WhiteElo "2638"]
[BlackElo "1171"]
[TimeControl "300"]
[EndTime "8:02:21 PDT"]
[Termination "Leonid_Starozhilov won on time"]

1. b3 {[%clk 0:04:57.1]} 1... c5 {[%clk 0:04:59.4]} 2. Bb2 {[%clk 0:04:56.4]}
2... e6 {[%clk 0:04:56.9]} 3. Nf3 {[%clk 0:04:56.3]} 3... Nf6 {[%clk 0:04:55.6]}
4. e3 {[%clk 0:04:55]} 4... Be7 {[%clk 0:04:55]} 5. c4 {[%clk 0:04:54]} 5... d6
{[%clk 0:04:54.3]} 6. d4 {[%clk 0:04:52.9]} 6... cxd4 {[%clk 0:04:52]} 7. Nxd4
{[%clk 0:04:51.9]} 7... a6 {[%clk 0:04:41.6]} 8. Nc3 {[%clk 0:04:49.6]} 8... O-O
{[%clk 0:04:38.5]} 9. Be2 {[%clk 0:04:47.6]} 9... b6 {[%clk 0:04:32]} 10. Bf3
{[%clk 0:04:46.3]} 10... Ra7 {[%clk 0:04:30.2]} 11. O-O {[%clk 0:04:45.1]} 11...
Bb7 {[%clk 0:04:28.7]} 12. Bxb7 {[%clk 0:04:43.2]} 12... Rxb7 {[%clk 0:04:28]}
13. Rc1 {[%clk 0:04:41.9]} 13... Rd7 {[%clk 0:04:21.8]} 14. Qf3 {[%clk
0:04:39.4]} 14... Qc7 {[%clk 0:04:18.3]} 15. Rfd1 {[%clk 0:04:37.8]} 15... Rfd8
{[%clk 0:04:11.7]} 16. h3 {[%clk 0:04:36.1]} 16... Bf8 {[%clk 0:04:06.1]} 17.
Ne4 {[%clk 0:04:31.7]} 17... Nxe4 {[%clk 0:03:59.6]} 18. Qxe4 {[%clk 0:04:31.6]}
18... e5 {[%clk 0:03:47.9]} 19. Ne2 {[%clk 0:04:27.3]} 19... Qc6 {[%clk
0:03:42.8]} 20. Qxc6 {[%clk 0:04:25.7]} 20... Nxc6 {[%clk 0:03:42.3]} 21. Nc3
{[%clk 0:04:25.4]} 21... f6 {[%clk 0:03:23.5]} 22. Rd2 {[%clk 0:04:20.3]} 22...
Na7 {[%clk 0:02:53]} 23. Rcd1 {[%clk 0:04:18.8]} 23... b5 {[%clk 0:02:51.5]} 24.
cxb5 {[%clk 0:04:16.2]} 24... Nxb5 {[%clk 0:02:49.4]} 25. Nd5 {[%clk 0:04:14]}
25... Rb7 {[%clk 0:02:41.6]} 26. Rc2 {[%clk 0:04:05.9]} 26... h6 {[%clk
0:02:28.5]} 27. e4 {[%clk 0:04:03.4]} 27... Nd4 {[%clk 0:02:17.4]} 28. Bxd4
{[%clk 0:04:01.8]} 28... exd4 {[%clk 0:02:16.4]} 29. Rxd4 {[%clk 0:04:01.7]}
29... a5 {[%clk 0:02:14.2]} 30. Rdc4 {[%clk 0:04:00.1]} 30... Kh7 {[%clk
0:02:09]} 31. f3 {[%clk 0:03:56.5]} 31... h5 {[%clk 0:01:57.6]} 32. g4 {[%clk
0:03:55]} 32... hxg4 {[%clk 0:01:54.3]} 33. hxg4 {[%clk 0:03:54.1]} 33... Kg8
{[%clk 0:01:48.7]} 34. Kf2 {[%clk 0:03:53]} 34... Rbb8 {[%clk 0:01:37.4]} 35.
Ke3 {[%clk 0:03:51.6]} 35... Kf7 {[%clk 0:01:31.2]} 36. Rc7+ {[%clk 0:03:49.3]}
36... Kg8 {[%clk 0:01:29.9]} 37. R2c4 {[%clk 0:03:43]} 37... Re8 {[%clk
0:00:52.5]} 38. R4c6 {[%clk 0:03:28.1]} 38... Rb5 {[%clk 0:00:44.4]} 39. Ra6
{[%clk 0:03:22.1]} 39... Rxd5 {[%clk 0:00:43]} 40. Rac6 {[%clk 0:03:16.1]} 40...
Rc5 {[%clk 0:00:39.3]} 41. Kd3 {[%clk 0:03:13]} 41... Rxc6 {[%clk 0:00:38.2]}
42. Rxc6 {[%clk 0:03:12.9]} 42... Rb8 {[%clk 0:00:24.2]} 43. Ra6 {[%clk
0:03:08.9]} 43... Rb5 {[%clk 0:00:22.8]} 44. Kc4 {[%clk 0:03:07.9]} 44... Rc5+
{[%clk 0:00:22]} 45. Kd4 {[%clk 0:03:07.4]} 45... Rc2 {[%clk 0:00:19.9]} 46.
Rxa5 {[%clk 0:03:06.2]} 46... Rb2 {[%clk 0:00:13.9]} 47. Kd3 {[%clk 0:03:04.6]}
47... Rf2 {[%clk 0:00:12.6]} 48. Ke3 {[%clk 0:03:03.8]} 48... Rb2 {[%clk
0:00:11.4]} 49. Ra8 {[%clk 0:03:00.8]} 49... Kf7 {[%clk 0:00:09.1]} 50. f4
{[%clk 0:02:59.6]} 50... Kg8 {[%clk 0:00:08.2]} 51. g5 {[%clk 0:02:57.9]} 51...
Rb1 {[%clk 0:00:07.8]} 52. g6 {[%clk 0:02:56.4]} 52... Rg1 {[%clk 0:00:05.3]}
53. f5 {[%clk 0:02:55.6]} 53... Rg2 {[%clk 0:00:04.1]} 54. Kd4 {[%clk 0:02:53]}
54... Rd2+ {[%clk 0:00:02.4]} 55. Kc4 {[%clk 0:02:51.4]} 55... Rc2+ {[%clk
0:00:01.8]} 56. Kd5 {[%clk 0:02:50.1]} 56... Rd2+ {[%clk 0:00:01.2]} 57. Ke6
{[%clk 0:02:49.3]} 1-0